[Event "*** Titled Tuesday 3|2 Blitz"]
[Site "Chess.com"]
[Date "2016.10.04"]
[Round "3"]
[White "chessbia"]
[Black "FearNoEvil12"]
[Result "0-1"]
[WhiteElo "2021"]
[BlackElo "2050"]
[TimeControl "180+2"]
[EndTime "11:34:40 PDT"]
[Termination "FearNoEvil12 won by resignation"]

1. d4 {[%clk 0:03:01.9]} 1... b5 {[%clk 0:03:00.7]} 2. Nf3 {[%clk 0:02:57.4]}
2... a6 {[%clk 0:03:02]} 3. g3 {[%clk 0:02:57.5]} 3... Bb7 {[%clk 0:03:03.2]} 4.
Bg2 {[%clk 0:02:59.4]} 4... Nf6 {[%clk 0:03:04.5]} 5. O-O {[%clk 0:02:56.1]}
5... e6 {[%clk 0:03:05.9]} 6. b3 {[%clk 0:02:54.5]} 6... d6 {[%clk 0:03:05.4]}
7. Bb2 {[%clk 0:02:56.4]} 7... Nbd7 {[%clk 0:03:05.2]} 8. c4 {[%clk 0:02:53.4]}
8... Be7 {[%clk 0:03:04.7]} 9. Nc3 {[%clk 0:02:52.1]} 9... b4 {[%clk 0:03:04]}
10. Nb1 {[%clk 0:02:45.2]} 10... O-O {[%clk 0:03:04]} 11. Nbd2 {[%clk
0:02:43.4]} 11... c5 {[%clk 0:03:03]} 12. e3 {[%clk 0:02:42.7]} 12... a5 {[%clk
0:03:00.1]} 13. a4 {[%clk 0:02:39.5]} 13... Qc7 {[%clk 0:02:55.7]} 14. Re1
{[%clk 0:02:24.2]} 14... Rad8 {[%clk 0:02:55.2]} 15. Rc1 {[%clk 0:02:22.9]}
15... Rfe8 {[%clk 0:02:55.2]} 16. Nf1 {[%clk 0:02:21.7]} 16... Bf8 {[%clk
0:02:54.3]} 17. N3d2 {[%clk 0:02:15.7]} 17... Bxg2 {[%clk 0:02:53]} 18. Kxg2
{[%clk 0:02:16.3]} 18... e5 {[%clk 0:02:49.6]} 19. d5 {[%clk 0:02:13.5]} 19...
g6 {[%clk 0:02:49.4]} 20. Qc2 {[%clk 0:02:12.5]} 20... Bg7 {[%clk 0:02:50.4]}
21. Ne4 {[%clk 0:02:09]} 21... Nxe4 {[%clk 0:02:49.7]} 22. Qxe4 {[%clk
0:02:10.9]} 22... f5 {[%clk 0:02:50.8]} 23. Qh4 {[%clk 0:02:10.4]} 23... e4
{[%clk 0:02:43.5]} 24. Bxg7 {[%clk 0:02:10.8]} 24... Kxg7 {[%clk 0:02:45]} 25.
h3 {[%clk 0:02:04.9]} 25... Ne5 {[%clk 0:02:46.2]} 26. Red1 {[%clk 0:01:56.5]}
26... h6 {[%clk 0:02:45]} 27. g4 {[%clk 0:01:56.6]} 27... Rf8 {[%clk 0:02:24.6]}
28. Nh2 {[%clk 0:01:50.6]} 28... g5 {[%clk 0:02:10.1]} 29. Qh5 {[%clk
0:01:40.5]} 29... f4 {[%clk 0:02:05.1]} 30. exf4 {[%clk 0:01:29.7]} 30... Ng6
{[%clk 0:02:02]} 31. Qxg6+ {[%clk 0:01:12.7]} 31... Kxg6 {[%clk 0:02:01.8]} 32.
f5+ {[%clk 0:01:13.7]} 32... Kg7 {[%clk 0:02:02.4]} 33. Re1 {[%clk 0:01:12]}
33... Rde8 {[%clk 0:02:03.9]} 34. Re3 {[%clk 0:01:12.4]} 34... Re5 {[%clk
0:02:05.4]} 35. Rce1 {[%clk 0:01:13.7]} 35... Rfe8 {[%clk 0:02:06.6]} 36. Nf1
{[%clk 0:01:12.7]} 36... Qf7 {[%clk 0:02:05]} 37. Ng3 {[%clk 0:01:11.4]} 37...
Qe7 {[%clk 0:02:01.8]} 38. Nh5+ {[%clk 0:01:01.1]} 38... Kh8 {[%clk 0:02:00.3]}
39. Ng3 {[%clk 0:00:58.4]} 39... Qf7 {[%clk 0:01:59.5]} 40. Nh5 {[%clk
0:00:45.9]} 40... Rxf5 {[%clk 0:01:59.1]} 41. gxf5 {[%clk 0:00:44.3]} 41... Qxh5
{[%clk 0:01:59.7]} 42. Rxe4 {[%clk 0:00:41.2]} 42... Rxe4 {[%clk 0:01:58.7]} 43.
Rxe4 {[%clk 0:00:43.1]} 43... Qf7 {[%clk 0:01:58.4]} 44. Re6 {[%clk 0:00:40.6]}
44... Qxf5 {[%clk 0:01:58.9]} 45. Rxh6+ {[%clk 0:00:39.3]} 45... Kg7 {[%clk
0:02:00.3]} 46. Rxd6 {[%clk 0:00:39.9]} 46... g4 {[%clk 0:02:01.6]} 47. h4
{[%clk 0:00:38.5]} 47... Qf3+ {[%clk 0:02:02]} 48. Kg1 {[%clk 0:00:39.7]} 48...
g3 {[%clk 0:02:01.6]} 49. Rd7+ {[%clk 0:00:39.3]} 49... Kh6 {[%clk 0:01:59.5]}
50. Rd6+ {[%clk 0:00:40.4]} 50... Kh5 {[%clk 0:01:58.7]} 0-1

[Event "*** Titled Tuesday 3|2 Blitz"]
[Site "Chess.com"]
[Date "2016.10.04"]
[Round "3"]
[White "Iuri_Shkuro"]
[Black "LyonBeast"]
[Result "1-0"]
[WhiteElo "2517"]
[BlackElo "2725"]
[TimeControl "180+2"]
[EndTime "11:34:42 PDT"]
[Termination "Iuri_Shkuro won by resignation"]

1. e4 {[%clk 0:03:01.9]} 1... c5 {[%clk 0:03:00.5]} 2. Nc3 {[%clk 0:03:02]} 2...
d6 {[%clk 0:03:00.3]} 3. f4 {[%clk 0:02:58.1]} 3... Nc6 {[%clk 0:02:57.3]} 4.
Nf3 {[%clk 0:02:58.7]} 4... g6 {[%clk 0:02:57.9]} 5. Bc4 {[%clk 0:02:58.9]} 5...
Bg7 {[%clk 0:02:58.8]} 6. O-O {[%clk 0:03:00.4]} 6... e6 {[%clk 0:02:59.4]} 7.
d3 {[%clk 0:03:01.2]} 7... Nge7 {[%clk 0:02:59.4]} 8. Qe1 {[%clk 0:02:57.2]}
8... Nd4 {[%clk 0:02:53.9]} 9. Nxd4 {[%clk 0:02:56]} 9... cxd4 {[%clk 0:02:55]}
10. Ne2 {[%clk 0:02:55.9]} 10... O-O {[%clk 0:02:54.4]} 11. Bb3 {[%clk
0:02:55.6]} 11... Bd7 {[%clk 0:02:43.7]} 12. a4 {[%clk 0:02:54.7]} 12... Rc8
{[%clk 0:02:38.7]} 13. Bd2 {[%clk 0:02:52.3]} 13... Kh8 {[%clk 0:02:32.2]} 14.
Kh1 {[%clk 0:02:50.5]} 14... f5 {[%clk 0:02:30.4]} 15. Ng1 {[%clk 0:02:49.6]}
15... e5 {[%clk 0:02:27.7]} 16. fxe5 {[%clk 0:02:32]} 16... dxe5 {[%clk
0:02:27.1]} 17. Bg5 {[%clk 0:02:29.5]} 17... Qe8 {[%clk 0:02:20.8]} 18. Qh4
{[%clk 0:02:28.1]} 18... Nc6 {[%clk 0:02:16.1]} 19. a5 {[%clk 0:02:25.1]} 19...
Be6 {[%clk 0:02:02.5]} 20. Ba4 {[%clk 0:02:19.5]} 20... Rf7 {[%clk 0:02:03.1]}
21. a6 {[%clk 0:02:14.1]} 21... bxa6 {[%clk 0:02:01.6]} 22. Nf3 {[%clk
0:02:12.9]} 22... f4 {[%clk 0:01:53.4]} 23. g3 {[%clk 0:02:05.7]} 23... fxg3
{[%clk 0:01:52.9]} 24. hxg3 {[%clk 0:01:58.4]} 24... Qf8 {[%clk 0:01:47.6]} 25.
Kg2 {[%clk 0:01:57.9]} 25... Nb4 {[%clk 0:01:48.8]} 26. Rac1 {[%clk 0:01:40.5]}
26... h5 {[%clk 0:01:48.1]} 27. Bd2 {[%clk 0:01:33.4]} 27... Qd6 {[%clk
0:00:37.8]} 28. Ng5 {[%clk 0:01:28.5]} 28... Rxf1 {[%clk 0:00:38.6]} 29. Rxf1
{[%clk 0:01:29]} 29... Bg8 {[%clk 0:00:40.1]} 30. g4 {[%clk 0:01:21.5]} 30...
Nxc2 {[%clk 0:00:26.8]} 31. gxh5 {[%clk 0:01:20]} 31... Bf6 {[%clk 0:00:12.6]}
32. Nf7+ {[%clk 0:01:02.1]} 1-0

[Event "*** Titled Tuesday 3|2 Blitz"]
[Site "Chess.com"]
[Date "2016.10.04"]
[Round "3"]
[White "Izoria123"]
[Black "TomsKantans"]
[Result "0-1"]
[WhiteElo "2562"]
[BlackElo "2464"]
[TimeControl "180+2"]
[EndTime "11:34:51 PDT"]
[Termination "TomsKantans won by resignation"]

1. e4 {[%clk 0:03:02]} 1... c5 {[%clk 0:02:58.9]} 2. Nf3 {[%clk 0:03:03]} 2...
Nf6 {[%clk 0:02:59.7]} 3. e5 {[%clk 0:03:02.1]} 3... Nd5 {[%clk 0:03:00.6]} 4.
d4 {[%clk 0:03:00.9]} 4... cxd4 {[%clk 0:03:00.9]} 5. Qxd4 {[%clk 0:03:02.8]}
5... e6 {[%clk 0:03:01.4]} 6. Bc4 {[%clk 0:03:03.5]} 6... Nc6 {[%clk 0:03:02]}
7. Qe4 {[%clk 0:03:04.7]} 7... f5 {[%clk 0:03:02.9]} 8. Qe2 {[%clk 0:03:04.3]}
8... Nde7 {[%clk 0:03:02.2]} 9. O-O {[%clk 0:03:02.2]} 9... Ng6 {[%clk
0:03:02.4]} 10. Nc3 {[%clk 0:03:02.9]} 10... a6 {[%clk 0:03:03.2]} 11. Rd1
{[%clk 0:02:33.1]} 11... Qc7 {[%clk 0:03:02.6]} 12. Nd5 {[%clk 0:02:16.4]} 12...
exd5 {[%clk 0:03:00.9]} 13. Bxd5 {[%clk 0:02:18.3]} 13... Be7 {[%clk 0:02:29.6]}
14. h4 {[%clk 0:02:12.6]} 14... Nf8 {[%clk 0:02:17.6]} 15. Ng5 {[%clk
0:01:53.8]} 15... Ne6 {[%clk 0:02:12.4]} 16. c3 {[%clk 0:01:42.2]} 16... O-O
{[%clk 0:01:48.6]} 17. Qh5 {[%clk 0:01:31]} 17... Bxg5 {[%clk 0:01:48.7]} 18.
Bxg5 {[%clk 0:01:27.2]} 18... b5 {[%clk 0:01:21.2]} 19. Be7 {[%clk 0:00:59.2]}
19... Nxe7 {[%clk 0:00:44.8]} 20. Bxa8 {[%clk 0:00:58.6]} 20... Qxe5 {[%clk
0:00:46.1]} 21. Re1 {[%clk 0:00:45]} 21... Qb8 {[%clk 0:00:44.4]} 22. Bf3 {[%clk
0:00:45]} 22... Ng6 {[%clk 0:00:42.3]} 23. g3 {[%clk 0:00:44.1]} 23... Bb7
{[%clk 0:00:28.8]} 24. Bxb7 {[%clk 0:00:19.9]} 24... Qxb7 {[%clk 0:00:30.7]} 25.
Rad1 {[%clk 0:00:18.6]} 25... Ngf4 {[%clk 0:00:25.7]} 0-1

[Event "*** Titled Tuesday 3|2 Blitz"]
[Site "Chess.com"]
[Date "2016.10.04"]
[Round "3"]
[White "RobertoJBM"]
[Black "Tarlev_Konstantin"]
[Result "1-0"]
[WhiteElo "2541"]
[BlackElo "2556"]
[TimeControl "180+2"]
[EndTime "11:34:56 PDT"]
[Termination "RobertoJBM won by resignation"]

1. d4 {[%clk 0:03:01.9]} 1... Nf6 {[%clk 0:03:00]} 2. c4 {[%clk 0:03:02.2]} 2...
e6 {[%clk 0:03:01.4]} 3. Nf3 {[%clk 0:03:01.1]} 3... b6 {[%clk 0:03:02]} 4. g3
{[%clk 0:03:02.4]} 4... Ba6 {[%clk 0:03:02.8]} 5. Qa4 {[%clk 0:03:03.6]} 5...
Bb7 {[%clk 0:03:01.4]} 6. Bg2 {[%clk 0:03:04.8]} 6... c5 {[%clk 0:03:02.4]} 7.
O-O {[%clk 0:03:05.5]} 7... cxd4 {[%clk 0:02:59]} 8. Nxd4 {[%clk 0:03:07.4]}
8... Bxg2 {[%clk 0:03:00.1]} 9. Kxg2 {[%clk 0:03:09.3]} 9... Be7 {[%clk
0:02:59.7]} 10. Nc3 {[%clk 0:03:10.3]} 10... O-O {[%clk 0:03:00.7]} 11. Rd1
{[%clk 0:03:11.5]} 11... Qc8 {[%clk 0:03:02]} 12. Bg5 {[%clk 0:03:12.5]} 12...
Qb7+ {[%clk 0:03:00.8]} 13. f3 {[%clk 0:03:13.5]} 13... d6 {[%clk 0:02:59.2]}
14. Bxf6 {[%clk 0:03:11.2]} 14... Bxf6 {[%clk 0:02:33]} 15. Ndb5 {[%clk
0:03:11.1]} 15... Bxc3 {[%clk 0:02:25.6]} 16. Nxc3 {[%clk 0:03:09.9]} 16... Rd8
{[%clk 0:02:26.1]} 17. Rd2 {[%clk 0:03:09.8]} 17... Na6 {[%clk 0:01:10.7]} 18.
Rad1 {[%clk 0:03:09]} 18... Nc5 {[%clk 0:01:11.9]} 19. Qc2 {[%clk 0:03:08.4]}
19... Qe7 {[%clk 0:01:12.7]} 20. b4 {[%clk 0:02:58.7]} 20... Nb7 {[%clk
0:01:12.5]} 21. Qb3 {[%clk 0:02:59.2]} 21... Rac8 {[%clk 0:01:10]} 22. Nb5
{[%clk 0:02:59.6]} 22... a6 {[%clk 0:01:08.8]} 23. Nd4 {[%clk 0:02:48.5]} 23...
d5 {[%clk 0:01:05.9]} 24. cxd5 {[%clk 0:02:48.3]} 24... Rxd5 {[%clk 0:01:06]}
25. e4 {[%clk 0:02:49.5]} 25... Rdd8 {[%clk 0:01:04]} 26. Qa4 {[%clk 0:02:42.8]}
26... a5 {[%clk 0:01:03.2]} 27. Nc6 {[%clk 0:02:37.8]} 27... Rxd2+ {[%clk
0:01:03.8]} 28. Rxd2 {[%clk 0:02:39.7]} 28... Qe8 {[%clk 0:01:01.8]} 29. b5
{[%clk 0:02:39.8]} 29... Nc5 {[%clk 0:01:01.9]} 30. Qd4 {[%clk 0:02:38.8]} 30...
h6 {[%clk 0:00:53.4]} 31. h4 {[%clk 0:02:35.2]} 31... Kh7 {[%clk 0:00:38.8]} 32.
e5 {[%clk 0:02:30.8]} 32... Rc7 {[%clk 0:00:27]} 33. Qd8 {[%clk 0:02:30.3]}
33... Qxd8 {[%clk 0:00:28.1]} 34. Rxd8 {[%clk 0:02:30.1]} 34... Rd7 {[%clk
0:00:28.7]} 35. Rxd7 {[%clk 0:02:18.6]} 35... Nxd7 {[%clk 0:00:29.6]} 36. f4
{[%clk 0:02:19.1]} 36... h5 {[%clk 0:00:26.1]} 37. Kf3 {[%clk 0:02:20]} 37... f6
{[%clk 0:00:24.2]} 38. exf6 {[%clk 0:02:18.9]} 38... gxf6 {[%clk 0:00:25.1]} 39.
Nd4 {[%clk 0:02:16.1]} 39... e5 {[%clk 0:00:25.8]} 40. Ne6 {[%clk 0:02:11.5]}
40... Kg6 {[%clk 0:00:24.1]} 41. Ke4 {[%clk 0:02:10.3]} 41... f5+ {[%clk
0:00:22.6]} 42. Kd5 {[%clk 0:02:11.1]} 42... e4 {[%clk 0:00:23.6]} 43. Kc6
{[%clk 0:01:59.4]} 43... e3 {[%clk 0:00:23.7]} 44. Nd4 {[%clk 0:01:59.4]} 44...
Nf6 {[%clk 0:00:14.4]} 45. Kxb6 {[%clk 0:01:57.5]} 45... Ne4 {[%clk 0:00:13.1]}
46. Ne2 {[%clk 0:01:54.9]} 1-0

[Event "*** Titled Tuesday 3|2 Blitz"]
[Site "Chess.com"]
[Date "2016.10.04"]
[Round "3"]
[White "Holden-Caulfield"]
[Black "TheCount"]
[Result "1-0"]
[WhiteElo "2480"]
[BlackElo "2457"]
[TimeControl "180+2"]
[EndTime "11:34:57 PDT"]
[Termination "Holden-Caulfield won by resignation"]

1. d4 {[%clk 0:03:01.9]} 1... Nf6 {[%clk 0:02:56.5]} 2. Nf3 {[%clk 0:03:03]}
2... g6 {[%clk 0:02:56.3]} 3. Bf4 {[%clk 0:03:03.9]} 3... Bg7 {[%clk 0:02:56.8]}
4. e3 {[%clk 0:03:04.9]} 4... d6 {[%clk 0:02:57.8]} 5. h3 {[%clk 0:03:04.7]}
5... O-O {[%clk 0:02:58.9]} 6. Be2 {[%clk 0:03:05.9]} 6... c5 {[%clk 0:03:00.5]}
7. c3 {[%clk 0:03:06.9]} 7... Qb6 {[%clk 0:02:57.7]} 8. Qb3 {[%clk 0:03:06.8]}
8... Be6 {[%clk 0:02:57.5]} 9. Qxb6 {[%clk 0:03:07.8]} 9... axb6 {[%clk
0:02:59.4]} 10. a3 {[%clk 0:03:07.6]} 10... Nc6 {[%clk 0:02:50.7]} 11. Nbd2
{[%clk 0:03:07.9]} 11... Bd5 {[%clk 0:02:45]} 12. O-O {[%clk 0:03:06.8]} 12...
Rfe8 {[%clk 0:02:44.3]} 13. Bh2 {[%clk 0:03:05.9]} 13... e5 {[%clk 0:02:44.7]}
14. dxe5 {[%clk 0:03:06.3]} 14... dxe5 {[%clk 0:02:45.2]} 15. Nc4 {[%clk
0:03:07.4]} 15... Bxc4 {[%clk 0:02:25]} 16. Bxc4 {[%clk 0:03:07]} 16... e4
{[%clk 0:02:14]} 17. Nd2 {[%clk 0:03:03.2]} 17... Ne5 {[%clk 0:02:11.7]} 18.
Bxe5 {[%clk 0:02:58.2]} 18... Rxe5 {[%clk 0:02:13.6]} 19. Rfd1 {[%clk
0:02:59.2]} 19... Rd8 {[%clk 0:02:05.9]} 20. Nf1 {[%clk 0:02:51.5]} 20... Ree8
{[%clk 0:01:59.7]} 21. Ng3 {[%clk 0:02:51.4]} 21... h5 {[%clk 0:01:55.5]} 22.
Kf1 {[%clk 0:02:45.1]} 22... h4 {[%clk 0:01:51.5]} 23. Ne2 {[%clk 0:02:44.8]}
23... Bf8 {[%clk 0:01:45]} 24. Nf4 {[%clk 0:02:43.6]} 24... Kg7 {[%clk
0:01:43.4]} 25. Bb5 {[%clk 0:02:36.9]} 25... Rxd1+ {[%clk 0:01:38.8]} 26. Rxd1
{[%clk 0:02:37.9]} 26... Rc8 {[%clk 0:01:31.8]} 27. Ke2 {[%clk 0:02:38]} 27...
Be7 {[%clk 0:01:21.6]} 28. Nd5 {[%clk 0:02:30.1]} 28... Nxd5 {[%clk 0:01:09]}
29. Rxd5 {[%clk 0:02:30.6]} 29... Rc7 {[%clk 0:01:10.5]} 30. Rd7 {[%clk
0:02:24.9]} 30... Rxd7 {[%clk 0:01:10.8]} 31. Bxd7 {[%clk 0:02:26]} 31... Kf6
{[%clk 0:01:01.1]} 32. Bc8 {[%clk 0:02:26.3]} 32... Ke5 {[%clk 0:01:02.2]} 33.
Bxb7 {[%clk 0:02:27]} 33... f5 {[%clk 0:01:00.1]} 34. f3 {[%clk 0:02:25.5]}
34... exf3+ {[%clk 0:00:59.6]} 35. gxf3 {[%clk 0:02:26.7]} 35... g5 {[%clk
0:00:59.6]} 36. Bc8 {[%clk 0:02:23.2]} 36... Bd6 {[%clk 0:00:56.3]} 37. Kd3
{[%clk 0:02:23.5]} 37... Bc7 {[%clk 0:00:26]} 38. Kc4 {[%clk 0:02:22]} 38... Bd8
{[%clk 0:00:27.1]} 39. Kb5 {[%clk 0:02:19.6]} 39... Bc7 {[%clk 0:00:22.5]} 40.
Kc6 {[%clk 0:02:19.7]} 40... Bd8 {[%clk 0:00:23.8]} 41. b4 {[%clk 0:02:18.1]}
41... cxb4 {[%clk 0:00:21.2]} 42. cxb4 {[%clk 0:02:19.3]} 42... Kf6 {[%clk
0:00:17]} 43. a4 {[%clk 0:02:19.3]} 43... Ke5 {[%clk 0:00:18.3]} 44. Bd7 {[%clk
0:02:20.1]} 44... Kf6 {[%clk 0:00:18.5]} 45. Kb5 {[%clk 0:02:21.2]} 45... Ke7
{[%clk 0:00:19.1]} 46. Bxf5 {[%clk 0:02:21.7]} 46... Kf6 {[%clk 0:00:20.6]} 47.
Bg4 {[%clk 0:02:21.7]} 47... Ke5 {[%clk 0:00:22]} 48. a5 {[%clk 0:02:23]} 48...
bxa5 {[%clk 0:00:23.4]} 49. bxa5 {[%clk 0:02:24.4]} 49... Kd6 {[%clk 0:00:24.9]}
50. a6 {[%clk 0:02:17.5]} 50... Kc7 {[%clk 0:00:26]} 51. Be6 {[%clk 0:02:15.2]}
51... Be7 {[%clk 0:00:23.4]} 52. Bd5 {[%clk 0:02:15.7]} 52... Kb8 {[%clk
0:00:24.2]} 53. Bb7 {[%clk 0:02:16.3]} 53... Bf6 {[%clk 0:00:22.3]} 54. e4
{[%clk 0:02:17.6]} 54... Be5 {[%clk 0:00:22.7]} 55. Kc6 {[%clk 0:02:18.6]} 55...
Bf4 {[%clk 0:00:23]} 56. Kd5 {[%clk 0:02:19.8]} 1-0

[Event "*** Titled Tuesday 3|2 Blitz"]
[Site "Chess.com"]
[Date "2016.10.04"]
[Round "3"]
[White "kikydu96"]
[Black "stuffings101"]
[Result "1-0"]
[WhiteElo "2300"]
[BlackElo "2140"]
[TimeControl "180+2"]
[EndTime "11:35:04 PDT"]
[Termination "kikydu96 won by resignation"]

1. e4 {[%clk 0:03:02]} 1... d6 {[%clk 0:03:00.3]} 2. d4 {[%clk 0:03:02.6]} 2...
Nf6 {[%clk 0:03:01.7]} 3. Nc3 {[%clk 0:03:03.4]} 3... g6 {[%clk 0:03:03]} 4. Be2
{[%clk 0:03:04.1]} 4... Bg7 {[%clk 0:03:03.7]} 5. h4 {[%clk 0:03:05]} 5... h5
{[%clk 0:03:03.4]} 6. Nf3 {[%clk 0:03:04.7]} 6... O-O {[%clk 0:03:02.8]} 7. Ng5
{[%clk 0:03:05.5]} 7... Nc6 {[%clk 0:03:01.5]} 8. f3 {[%clk 0:03:04.1]} 8... e5
{[%clk 0:03:02.1]} 9. dxe5 {[%clk 0:02:58.5]} 9... Nxe5 {[%clk 0:02:58.3]} 10.
Be3 {[%clk 0:02:56.8]} 10... a6 {[%clk 0:02:58.3]} 11. Qd2 {[%clk 0:02:57.4]}
11... b5 {[%clk 0:02:59]} 12. O-O-O {[%clk 0:02:58]} 12... Rb8 {[%clk
0:02:59.5]} 13. Kb1 {[%clk 0:02:58]} 13... Nc4 {[%clk 0:02:56.4]} 14. Bxc4
{[%clk 0:02:48.8]} 14... bxc4 {[%clk 0:02:58.3]} 15. e5 {[%clk 0:02:49]} 15...
Ne8 {[%clk 0:02:54.6]} 16. f4 {[%clk 0:02:43.8]} 16... Bg4 {[%clk 0:02:51.3]}
17. Nf3 {[%clk 0:02:39.1]} 17... Qc8 {[%clk 0:02:42.8]} 18. Qd5 {[%clk
0:02:24.9]} 18... dxe5 {[%clk 0:02:35.9]} 19. fxe5 {[%clk 0:02:18.5]} 19... c6
{[%clk 0:02:35]} 20. Qxc4 {[%clk 0:02:17]} 20... Bxf3 {[%clk 0:02:29.6]} 21.
gxf3 {[%clk 0:02:16.8]} 21... Bxe5 {[%clk 0:02:24.8]} 22. Bc5 {[%clk 0:02:17.2]}
22... Qe6 {[%clk 0:02:10.2]} 23. Qxe6 {[%clk 0:02:09]} 23... fxe6 {[%clk
0:02:10.1]} 24. Bxf8 {[%clk 0:02:09.5]} 24... Bxc3 {[%clk 0:02:09.8]} 25. Ba3
{[%clk 0:02:10.9]} 25... Nf6 {[%clk 0:02:07.2]} 26. Rd6 {[%clk 0:02:03.8]} 26...
c5 {[%clk 0:01:34.6]} 27. Rxe6 {[%clk 0:02:01.5]} 27... Kf7 {[%clk 0:01:34.7]}
28. Rxa6 {[%clk 0:02:02]} 28... c4 {[%clk 0:01:35.5]} 29. Rd1 {[%clk 0:01:55.4]}
29... Rb7 {[%clk 0:01:34.1]} 30. f4 {[%clk 0:01:52.7]} 30... Bxb2 {[%clk
0:01:34.6]} 31. Bxb2 {[%clk 0:01:46.3]} 31... c3 {[%clk 0:01:35.9]} 32. Rd3
{[%clk 0:01:44.8]} 32... Rxb2+ {[%clk 0:01:17.7]} 33. Kc1 {[%clk 0:01:44.1]}
33... Rb7 {[%clk 0:01:06.4]} 34. Rxc3 {[%clk 0:01:43.9]} 34... Nd5 {[%clk
0:01:07.3]} 35. Rcc6 {[%clk 0:01:42.2]} 35... Re7 {[%clk 0:01:02.3]} 36. Rxg6
{[%clk 0:01:39.4]} 36... Re4 {[%clk 0:01:02.8]} 37. Rgd6 {[%clk 0:01:36.8]}
37... Ne7 {[%clk 0:00:10.8]} 38. Rf6+ {[%clk 0:01:36.7]} 38... Kg7 {[%clk
0:00:11.9]} 39. Rfe6 {[%clk 0:01:37.2]} 1-0

[Event "*** Titled Tuesday 3|2 Blitz"]
[Site "Chess.com"]
[Date "2016.10.04"]
[Round "3"]
[White "LornerAcosta"]
[Black "ulises2013"]
[Result "0-1"]
[WhiteElo "2340"]
[BlackElo "2318"]
[TimeControl "180+2"]
[EndTime "11:35:12 PDT"]
[Termination "ulises2013 won by resignation"]

1. Nf3 {[%clk 0:03:01.9]} 1... Nf6 {[%clk 0:02:58.4]} 2. e3 {[%clk 0:03:00.9]}
2... e6 {[%clk 0:02:47.8]} 3. c4 {[%clk 0:03:01.4]} 3... Be7 {[%clk 0:02:48.1]}
4. Nc3 {[%clk 0:03:02.5]} 4... O-O {[%clk 0:02:48.9]} 5. Qc2 {[%clk 0:03:03.5]}
5... d5 {[%clk 0:02:49.8]} 6. b3 {[%clk 0:03:04.2]} 6... c5 {[%clk 0:02:50.5]}
7. Bb2 {[%clk 0:03:05.1]} 7... Nc6 {[%clk 0:02:51.8]} 8. a3 {[%clk 0:03:04.8]}
8... d4 {[%clk 0:02:51.6]} 9. Ne4 {[%clk 0:03:04.9]} 9... Nxe4 {[%clk
0:02:47.8]} 10. Qxe4 {[%clk 0:03:05.6]} 10... f5 {[%clk 0:02:45.9]} 11. Qc2
{[%clk 0:03:06]} 11... e5 {[%clk 0:02:41.4]} 12. d3 {[%clk 0:03:06.7]} 12... Bd6
{[%clk 0:02:37.3]} 13. Be2 {[%clk 0:03:04.4]} 13... a5 {[%clk 0:02:33.2]} 14.
exd4 {[%clk 0:03:05.3]} 14... exd4 {[%clk 0:02:30.9]} 15. h4 {[%clk 0:03:00.5]}
15... b6 {[%clk 0:02:25.1]} 16. Bc1 {[%clk 0:03:00.9]} 16... Bb7 {[%clk
0:02:23.4]} 17. O-O {[%clk 0:02:58.6]} 17... Ne5 {[%clk 0:02:01.5]} 18. Nxe5
{[%clk 0:02:59.5]} 18... Bxe5 {[%clk 0:02:03.4]} 19. f4 {[%clk 0:02:56.4]} 19...
Bd6 {[%clk 0:01:50.9]} 20. h5 {[%clk 0:02:57.2]} 20... Qh4 {[%clk 0:01:45.9]}
21. Bf3 {[%clk 0:02:58.1]} 21... Bxf3 {[%clk 0:01:46]} 22. Rxf3 {[%clk 0:03:00]}
22... Rae8 {[%clk 0:01:45]} 23. Rf1 {[%clk 0:03:00.5]} 23... Qxh5 {[%clk
0:01:37.7]} 24. Bd2 {[%clk 0:03:00.4]} 24... Re2 {[%clk 0:01:37]} 25. Rae1
{[%clk 0:03:01.9]} 25... Rfe8 {[%clk 0:01:38]} 26. Rxe2 {[%clk 0:02:57]} 26...
Rxe2 {[%clk 0:01:39.9]} 27. Qd1 {[%clk 0:02:57.4]} 27... Qg4 {[%clk 0:01:28.3]}
28. Rf2 {[%clk 0:02:56.2]} 28... Rxf2 {[%clk 0:01:23.8]} 29. Qxg4 {[%clk
0:02:56]} 29... fxg4 {[%clk 0:01:23.6]} 30. Kxf2 {[%clk 0:02:56.8]} 30... Kf7
{[%clk 0:01:18.6]} 31. Kg3 {[%clk 0:02:57.3]} 31... h5 {[%clk 0:01:18.8]} 32.
Kh4 {[%clk 0:02:56.9]} 32... Kg6 {[%clk 0:01:19.7]} 33. f5+ {[%clk 0:02:45]}
33... Kxf5 {[%clk 0:01:18]} 34. Kxh5 {[%clk 0:02:46.9]} 34... Bf4 {[%clk
0:01:13.7]} 35. Be1 {[%clk 0:02:47.2]} 35... g6+ {[%clk 0:01:14.5]} 36. Kh4
{[%clk 0:02:46]} 36... Bc1 {[%clk 0:01:10.8]} 37. a4 {[%clk 0:02:44.2]} 37...
Bf4 {[%clk 0:01:09.8]} 38. Bf2 {[%clk 0:02:38.1]} 38... Bd2 {[%clk 0:01:05.6]}
39. Kg3 {[%clk 0:02:16.1]} 39... Bf4+ {[%clk 0:01:01.2]} 40. Kh4 {[%clk
0:02:16.5]} 40... Be5 {[%clk 0:01:01.5]} 41. Be1 {[%clk 0:02:14.8]} 41... Bd6
{[%clk 0:01:02.2]} 42. Bd2 {[%clk 0:02:08.7]} 42... Bf4 {[%clk 0:00:57.3]} 43.
Be1 {[%clk 0:02:09.1]} 43... Be3 {[%clk 0:00:45.7]} 44. Kg3 {[%clk 0:02:07.2]}
44... Bg5 {[%clk 0:00:40.4]} 45. Bf2 {[%clk 0:02:04.1]} 45... Bf6 {[%clk
0:00:36.7]} 46. Be1 {[%clk 0:02:03.3]} 46... Be5+ {[%clk 0:00:37.7]} 47. Kh4
{[%clk 0:02:03.8]} 47... Bf4 {[%clk 0:00:38.4]} 48. Bf2 {[%clk 0:02:02.6]} 48...
Bd2 {[%clk 0:00:39.4]} 49. Kg3 {[%clk 0:02:02.8]} 49... g5 {[%clk 0:00:40.4]}
50. Kh2 {[%clk 0:01:58.1]} 50... Kf4 {[%clk 0:00:41.6]} 51. Kh1 {[%clk 0:01:55]}
51... Be3 {[%clk 0:00:42.4]} 52. Be1 {[%clk 0:01:55.1]} 52... Bc1 {[%clk
0:00:42.9]} 53. Kg1 {[%clk 0:01:55.2]} 53... Ke3 {[%clk 0:00:42.9]} 54. Bg3
{[%clk 0:01:54.4]} 54... Kxd3 {[%clk 0:00:43.9]} 55. Bc7 {[%clk 0:01:56.3]}
55... Bd2 {[%clk 0:00:44.4]} 56. Bxb6 {[%clk 0:01:56.6]} 56... Bb4 {[%clk
0:00:45.6]} 57. Bd8 {[%clk 0:01:56.5]} 57... Kc3 {[%clk 0:00:46.1]} 58. Kf2
{[%clk 0:01:58.1]} 58... Kxb3 {[%clk 0:00:47.4]} 0-1